[Event "Titled Tuesday Blitz April 05 Late 2022"]
[White "Diaz Perez, Michel Alejandro"]
[Black "Miszler, Levente"]
[WhiteFideId "3517179"]
[BlackFideId "763276"]
[WhiteElo "2644"]
[BlackElo "2377"]
[Result "1-0"]
[Round "04"]
[TimeControl "180+1"]
[Date "2022.04.06"]
[WhiteClock "0:02:04"]
[BlackClock "0:01:39"]

1. d4 {[%clk 0:03:00]}  Nf6 {[%clk 0:02:59]} 2. Nf3 {[%clk 0:03:00]}  g6 {[%clk 0:02:56]} 3. c4 {[%clk 0:03:01]}  Bg7 {[%clk 0:02:57]} 4. Nc3 {[%clk 0:03:01]}  O-O {[%clk 0:02:57]} 5. g3 {[%clk 0:03:01]}  d6 {[%clk 0:02:58]} 6. Bg2 {[%clk 0:03:02]}  Nbd7 {[%clk 0:02:59]} 7. O-O {[%clk 0:03:02]}  e5 {[%clk 0:03:00]} 8. Re1 {[%clk 0:03:01]}  Re8 {[%clk 0:02:59]} 9. h3 {[%clk 0:03:02]}  h6 {[%clk 0:02:59]} 10. e4 {[%clk 0:02:58]}  exd4 {[%clk 0:02:54]} 11. Nxd4 {[%clk 0:02:59]}  Nc5 {[%clk 0:02:54]} 12. Qc2 {[%clk 0:02:57]}  Ne6 {[%clk 0:02:52]} 13. Nde2 {[%clk 0:02:55]}  Nc5 {[%clk 0:02:50]} 14. Be3 {[%clk 0:02:48]}  b6 {[%clk 0:02:48]} 15. b4 {[%clk 0:02:45]}  Nb7 {[%clk 0:02:45]} 16. Nd4 {[%clk 0:02:44]}  a5 {[%clk 0:02:40]} 17. Nc6 {[%clk 0:02:38]}  Qd7 {[%clk 0:02:40]} 18. b5 {[%clk 0:02:39]}  Nc5 {[%clk 0:02:34]} 19. Rad1 {[%clk 0:02:38]}  Bb7 {[%clk 0:02:31]} 20. Bxc5 {[%clk 0:02:23]}  bxc5 {[%clk 0:02:31]} 21. e5 {[%clk 0:02:23]}  Nh5 {[%clk 0:02:26]} 22. Nd5 {[%clk 0:02:11]}  Kh8 {[%clk 0:02:07]} 23. g4 {[%clk 0:02:10]}  Bxc6 {[%clk 0:01:49]} 24. bxc6 {[%clk 0:02:09]}  Qxc6 {[%clk 0:01:50]} 25. gxh5 {[%clk 0:02:08]}  Bxe5 {[%clk 0:01:39]} 26. Nf6 {[%clk 0:02:04]} 1-0


[Site "https://www.chess.com"]

[Event "Titled Tuesday Blitz April 05 Late 2022"]
[White "Estrada Nieto, Julian"]
[Black "Tregubov, Pavel V."]
[WhiteFideId "5101018"]
[BlackFideId "4115341"]
[WhiteElo "2364"]
[BlackElo "2609"]
[Result "0-1"]
[Round "04"]
[TimeControl "180+1"]
[Date "2022.04.06"]
[WhiteClock "0:00:01"]
[BlackClock "0:00:05"]

1. e4 {[%clk 0:03:00]}  e5 {[%clk 0:02:57]} 2. Nf3 {[%clk 0:03:00]}  Nf6 {[%clk 0:02:58]} 3. d4 {[%clk 0:02:59]}  Nxe4 {[%clk 0:02:56]} 4. Bd3 {[%clk 0:02:59]}  d5 {[%clk 0:02:56]} 5. Nxe5 {[%clk 0:02:59]}  Nd7 {[%clk 0:02:57]} 6. Nxd7 {[%clk 0:02:58]}  Bxd7 {[%clk 0:02:57]} 7. O-O {[%clk 0:02:58]}  Be7 {[%clk 0:02:50]} 8. Nc3 {[%clk 0:02:54]}  Nf6 {[%clk 0:02:50]} 9. Bg5 {[%clk 0:02:49]}  c6 {[%clk 0:02:45]} 10. Re1 {[%clk 0:02:49]}  O-O {[%clk 0:02:45]} 11. h3 {[%clk 0:02:29]}  Re8 {[%clk 0:02:45]} 12. Qf3 {[%clk 0:02:29]}  Be6 {[%clk 0:02:15]} 13. Ne2 {[%clk 0:02:09]}  Nd7 {[%clk 0:02:12]} 14. Bxe7 {[%clk 0:02:06]}  Qxe7 {[%clk 0:02:08]} 15. Nf4 {[%clk 0:02:06]}  Qf6 {[%clk 0:02:08]} 16. Qe3 {[%clk 0:01:37]}  Nf8 {[%clk 0:02:06]} 17. Nh5 {[%clk 0:01:23]}  Qh4 {[%clk 0:01:50]} 18. Nf4 {[%clk 0:00:49]}  Bd7 {[%clk 0:01:48]} 19. Qd2 {[%clk 0:00:45]}  Qg5 {[%clk 0:01:34]} 20. Kh2 {[%clk 0:00:27]}  Ne6 {[%clk 0:01:25]} 21. g3 {[%clk 0:00:23]}  Nxf4 {[%clk 0:01:25]} 22. Qxf4 {[%clk 0:00:22]}  Qxf4 {[%clk 0:01:25]} 23. gxf4 {[%clk 0:00:23]}  Rxe1 {[%clk 0:01:16]} 24. Rxe1 {[%clk 0:00:22]}  Kf8 {[%clk 0:01:15]} 25. Kg3 {[%clk 0:00:19]}  Re8 {[%clk 0:01:13]} 26. Re3 {[%clk 0:00:19]}  g6 {[%clk 0:01:08]} 27. f5 {[%clk 0:00:19]}  gxf5 {[%clk 0:00:52]} 28. Kf4 {[%clk 0:00:18]}  Re6 {[%clk 0:00:51]} 29. Re5 {[%clk 0:00:13]}  Rh6 {[%clk 0:00:49]} 30. Kg3 {[%clk 0:00:09]}  f6 {[%clk 0:00:46]} 31. Re3 {[%clk 0:00:07]}  f4+ {[%clk 0:00:40]} 32. Kxf4 {[%clk 0:00:06]}  Bxh3 {[%clk 0:00:41]} 33. Bf5 {[%clk 0:00:05]}  Bxf5 {[%clk 0:00:37]} 34. Kxf5 {[%clk 0:00:05]}  Kf7 {[%clk 0:00:37]} 35. Rg3 {[%clk 0:00:04]}  Rh2 {[%clk 0:00:30]} 36. Rf3 {[%clk 0:00:03]}  Rh5+ {[%clk 0:00:22]} 37. Kg4 {[%clk 0:00:02]}  Rg5+ {[%clk 0:00:22]} 38. Kf4 {[%clk 0:00:03]}  Kg6 {[%clk 0:00:20]} 39. Re3 {[%clk 0:00:03]}  Rf5+ {[%clk 0:00:18]} 40. Kg3 {[%clk 0:00:03]}  Kf7 {[%clk 0:00:17]} 41. f4 {[%clk 0:00:02]}  Rh5 {[%clk 0:00:17]} 42. Rb3 {[%clk 0:00:01]}  b6 {[%clk 0:00:15]} 43. Ra3 {[%clk 0:00:02]}  a5 {[%clk 0:00:14]} 44. Rc3 {[%clk 0:00:02]}  c5 {[%clk 0:00:05]} 45. dxc5 {[%clk 0:00:02]}  d4 {[%clk 0:00:06]} 46. Rb3 {[%clk 0:00:02]}  Rxc5 {[%clk 0:00:06]} 47. Rxb6 {[%clk 0:00:01]}  Rxc2 {[%clk 0:00:06]} 48. Rb7+ {[%clk 0:00:02]}  Kg6 {[%clk 0:00:06]} 49. Rb5 {[%clk 0:00:03]}  d3 {[%clk 0:00:05]} 50. f5+ {[%clk 0:00:03]}  Kg5 {[%clk 0:00:04]} 51. Rd5 {[%clk 0:00:04]}  d2 {[%clk 0:00:04]} 52. a3 {[%clk 0:00:03]}  Rxb2 {[%clk 0:00:04]} 53. Rd4 {[%clk 0:00:03]}  h5 {[%clk 0:00:05]} 54. Kf3 {[%clk 0:00:03]}  h4 {[%clk 0:00:05]} 55. Ke3 {[%clk 0:00:04]}  h3 {[%clk 0:00:05]} 56. Rd8 {[%clk 0:00:02]}  h2 {[%clk 0:00:04]} 57. Rg8+ {[%clk 0:00:02]}  Kxf5 {[%clk 0:00:05]} 58. Rh8 {[%clk 0:00:01]}  d1=Q {[%clk 0:00:05]} 0-1


[Site "https://www.chess.com"]

[Event "Titled Tuesday Blitz April 05 Late 2022"]
[White "Hakobyan, Aram"]
[Black "Harshavardhan G B"]
[WhiteFideId "13306677"]
[BlackFideId "25059009"]
[WhiteElo "2557"]
[BlackElo "1831"]
[Result "1-0"]
[Round "04"]
[TimeControl "180+1"]
[Date "2022.04.05"]
[WhiteClock "0:01:24"]
[BlackClock "0:00:02"]

1. d4 {[%clk 0:03:00]}  Nf6 {[%clk 0:02:59]} 2. c4 {[%clk 0:03:01]}  g6 {[%clk 0:02:59]} 3. Nc3 {[%clk 0:03:00]}  Bg7 {[%clk 0:02:59]} 4. e4 {[%clk 0:03:00]}  d6 {[%clk 0:02:59]} 5. Be2 {[%clk 0:03:00]}  O-O {[%clk 0:02:59]} 6. Be3 {[%clk 0:03:01]}  e5 {[%clk 0:02:59]} 7. d5 {[%clk 0:03:00]}  a5 {[%clk 0:02:59]} 8. g4 {[%clk 0:02:59]}  Na6 {[%clk 0:02:59]} 9. h4 {[%clk 0:02:59]}  Nc5 {[%clk 0:02:57]} 10. f3 {[%clk 0:02:58]}  h5 {[%clk 0:02:54]} 11. g5 {[%clk 0:02:47]}  Nfd7 {[%clk 0:02:53]} 12. Nh3 {[%clk 0:02:47]}  f6 {[%clk 0:02:53]} 13. gxf6 {[%clk 0:02:44]}  Bxf6 {[%clk 0:02:52]} 14. Ng5 {[%clk 0:02:44]}  Qe7 {[%clk 0:02:48]} 15. Qd2 {[%clk 0:02:39]}  c6 {[%clk 0:02:46]} 16. O-O-O {[%clk 0:02:38]}  Ra6 {[%clk 0:02:35]} 17. dxc6 {[%clk 0:02:35]}  Rxc6 {[%clk 0:02:35]} 18. Nd5 {[%clk 0:02:36]}  Qg7 {[%clk 0:02:34]} 19. Kb1 {[%clk 0:02:36]}  Bd8 {[%clk 0:02:33]} 20. Rhg1 {[%clk 0:02:32]}  Nf6 {[%clk 0:02:32]} 21. Rc1 {[%clk 0:02:22]}  Nh7 {[%clk 0:02:30]} 22. Nxh7 {[%clk 0:02:21]}  Qxh7 {[%clk 0:02:28]} 23. Bh6 {[%clk 0:02:10]}  Bxh4 {[%clk 0:01:28]} 24. Rh1 {[%clk 0:01:59]}  Bd8 {[%clk 0:01:12]} 25. Rcg1 {[%clk 0:01:55]}  Ne6 {[%clk 0:01:06]} 26. Rxh5 {[%clk 0:01:44]}  Nd4 {[%clk 0:00:53]} 27. Rhh1 {[%clk 0:01:40]}  Nxf3 {[%clk 0:00:11]} 28. Bxf3 {[%clk 0:01:40]}  Rxf3 {[%clk 0:00:12]} 29. Bg5 {[%clk 0:01:39]}  Rh3 {[%clk 0:00:11]} 30. Rxh3 {[%clk 0:01:36]}  Qxh3 {[%clk 0:00:10]} 31. Bxd8 {[%clk 0:01:37]}  Rxc4 {[%clk 0:00:11]} 32. Qg5 {[%clk 0:01:28]}  Qe6 {[%clk 0:00:02]} 33. Nf6+ {[%clk 0:01:24]} 1-0


[Site "https://www.chess.com"]

[Event "Titled Tuesday Blitz April 05 Late 2022"]
[White "Hambleton, Aman"]
[Black "Suder, Jakub"]
[WhiteFideId "2606577"]
[BlackFideId "1195310"]
[WhiteElo "2552"]
[BlackElo "2058"]
[Result "1-0"]
[Round "04"]
[TimeControl "180+1"]
[Date "2022.04.05"]
[WhiteClock "0:02:35"]
[BlackClock "0:02:35"]

1. d4 {[%clk 0:02:59]}  d5 {[%clk 0:03:00]} 2. Bf4 {[%clk 0:02:58]}  Nf6 {[%clk 0:02:59]} 3. e3 {[%clk 0:02:58]}  c5 {[%clk 0:02:59]} 4. c3 {[%clk 0:02:58]}  Nc6 {[%clk 0:02:59]} 5. Nd2 {[%clk 0:02:59]}  Bg4 {[%clk 0:02:58]} 6. Qb3 {[%clk 0:02:59]}  Qb6 {[%clk 0:02:56]} 7. h3 {[%clk 0:02:52]}  Be6 {[%clk 0:02:48]} 8. dxc5 {[%clk 0:02:46]}  Qxc5 {[%clk 0:02:48]} 9. Qxb7 {[%clk 0:02:46]}  Rc8 {[%clk 0:02:44]} 10. Nb3 {[%clk 0:02:38]}  Qb6 {[%clk 0:02:36]} 11. Qxb6 {[%clk 0:02:39]}  axb6 {[%clk 0:02:37]} 12. Ba6 {[%clk 0:02:39]}  Rd8 {[%clk 0:02:35]} 13. Bc7 {[%clk 0:02:35]}  Rd7 {[%clk 0:02:35]} 14. Bxb6 {[%clk 0:02:35]} 1-0


[Site "https://www.chess.com"]

[Event "Titled Tuesday Blitz April 05 Late 2022"]
[White "Hardaway, Brewington"]
[Black "Hoffmann, Asa"]
[WhiteFideId "30941849"]
[BlackFideId "2001470"]
[WhiteElo "2665"]
[BlackElo "2378"]
[Result "1-0"]
[Round "04"]
[TimeControl "180+1"]
[Date "2022.04.06"]
[WhiteClock "0:00:49"]
[BlackClock "0:00:34"]

1. e4 {[%clk 0:03:00]}  d6 {[%clk 0:02:54]} 2. Nf3 {[%clk 0:02:56]}  Bg4 {[%clk 0:02:49]} 3. Bc4 {[%clk 0:02:54]}  e6 {[%clk 0:02:48]} 4. h3 {[%clk 0:02:53]}  Bh5 {[%clk 0:02:48]} 5. d4 {[%clk 0:02:53]}  Nf6 {[%clk 0:02:47]} 6. Nc3 {[%clk 0:02:51]}  c6 {[%clk 0:02:47]} 7. Be3 {[%clk 0:02:48]}  d5 {[%clk 0:02:46]} 8. exd5 {[%clk 0:02:47]}  cxd5 {[%clk 0:02:46]} 9. Bb5+ {[%clk 0:02:46]}  Nc6 {[%clk 0:02:45]} 10. g4 {[%clk 0:02:46]}  Bg6 {[%clk 0:02:45]} 11. Ne5 {[%clk 0:02:47]}  Rc8 {[%clk 0:02:44]} 12. h4 {[%clk 0:02:46]}  Bb4 {[%clk 0:02:35]} 13. h5 {[%clk 0:02:44]}  Be4 {[%clk 0:02:32]} 14. f3 {[%clk 0:02:44]}  Qa5 {[%clk 0:02:25]} 15. Bxc6+ {[%clk 0:02:39]}  bxc6 {[%clk 0:02:24]} 16. fxe4 {[%clk 0:02:30]}  Bxc3+ {[%clk 0:02:19]} 17. bxc3 {[%clk 0:02:30]}  Qxc3+ {[%clk 0:02:19]} 18. Ke2 {[%clk 0:02:27]}  Nxe4 {[%clk 0:02:18]} 19. Rg1 {[%clk 0:02:14]}  O-O {[%clk 0:02:16]} 20. Qd3 {[%clk 0:02:13]}  Qa5 {[%clk 0:02:12]} 21. g5 {[%clk 0:02:10]}  Nc3+ {[%clk 0:01:55]} 22. Kf3 {[%clk 0:02:02]}  f6 {[%clk 0:01:55]} 23. Nd7 {[%clk 0:01:52]}  e5 {[%clk 0:01:45]} 24. Kg2 {[%clk 0:01:15]}  Rf7 {[%clk 0:01:35]} 25. Qf5 {[%clk 0:01:11]}  Rd8 {[%clk 0:01:24]} 26. Nxf6+ {[%clk 0:01:02]}  gxf6 {[%clk 0:01:15]} 27. gxf6 {[%clk 0:01:03]}  Kh8 {[%clk 0:01:06]} 28. dxe5 {[%clk 0:00:59]}  Qb5 {[%clk 0:00:57]} 29. e6 {[%clk 0:00:54]}  Qe2+ {[%clk 0:00:56]} 30. Bf2 {[%clk 0:00:50]}  Rg8+ {[%clk 0:00:50]} 31. Kh1 {[%clk 0:00:50]}  Rff8 {[%clk 0:00:44]} 32. f7 {[%clk 0:00:47]}  Rxg1+ {[%clk 0:00:40]} 33. Rxg1 {[%clk 0:00:48]}  Qe4+ {[%clk 0:00:34]} 34. Qxe4 {[%clk 0:00:48]}  Nxe4 {[%clk 0:00:34]} 35. Bd4+ {[%clk 0:00:49]} 1-0


[Site "https://www.chess.com"]

[Event "Titled Tuesday Blitz April 05 Late 2022"]
[White "Ilyasli, Ughur"]
[Black "Harish, Neeraj"]
[WhiteFideId "13416197"]
[BlackFideId "30958130"]
[WhiteElo "2045"]
[BlackElo "1574"]
[Result "1-0"]
[Round "04"]
[TimeControl "180+1"]
[Date "2022.04.06"]
[WhiteClock "0:00:16"]
[BlackClock "0:00:13"]

1. d4 {[%clk 0:03:00]}  d5 {[%clk 0:02:55]} 2. c4 {[%clk 0:03:01]}  c6 {[%clk 0:02:54]} 3. Nf3 {[%clk 0:03:01]}  Nf6 {[%clk 0:02:54]} 4. e3 {[%clk 0:03:01]}  e6 {[%clk 0:02:53]} 5. Bd3 {[%clk 0:03:00]}  Nbd7 {[%clk 0:02:53]} 6. Nbd2 {[%clk 0:03:00]}  Bd6 {[%clk 0:02:53]} 7. O-O {[%clk 0:02:59]}  O-O {[%clk 0:02:51]} 8. e4 {[%clk 0:02:59]}  e5 {[%clk 0:02:40]} 9. cxd5 {[%clk 0:02:58]}  cxd5 {[%clk 0:02:39]} 10. exd5 {[%clk 0:02:58]}  exd4 {[%clk 0:02:12]} 11. Ne4 {[%clk 0:02:58]}  Nxe4 {[%clk 0:02:01]} 12. Bxe4 {[%clk 0:02:58]}  Nf6 {[%clk 0:02:01]} 13. Qxd4 {[%clk 0:02:34]}  Re8 {[%clk 0:02:00]} 14. Bd3 {[%clk 0:02:29]}  Bg4 {[%clk 0:01:54]} 15. Bg5 {[%clk 0:02:06]}  Bxf3 {[%clk 0:01:46]} 16. Bxf6 {[%clk 0:01:57]}  Qxf6 {[%clk 0:01:23]} 17. Qxf6 {[%clk 0:01:56]}  gxf6 {[%clk 0:01:24]} 18. gxf3 {[%clk 0:01:56]}  Be5 {[%clk 0:01:23]} 19. Rab1 {[%clk 0:01:47]}  Red8 {[%clk 0:01:22]} 20. Rfd1 {[%clk 0:01:46]}  Kg7 {[%clk 0:01:16]} 21. Be4 {[%clk 0:01:41]}  Rac8 {[%clk 0:01:11]} 22. b4 {[%clk 0:01:34]}  Rc4 {[%clk 0:01:04]} 23. b5 {[%clk 0:01:18]}  Rc5 {[%clk 0:00:57]} 24. b6 {[%clk 0:01:16]}  a6 {[%clk 0:00:57]} 25. d6 {[%clk 0:01:09]}  Rxd6 {[%clk 0:00:43]} 26. Rxd6 {[%clk 0:01:06]}  Bxd6 {[%clk 0:00:43]} 27. Bxb7 {[%clk 0:01:07]}  Rb5 {[%clk 0:00:41]} 28. Rxb5 {[%clk 0:00:50]}  axb5 {[%clk 0:00:42]} 29. Bc6 {[%clk 0:00:50]}  Kg6 {[%clk 0:00:39]} 30. Bxb5 {[%clk 0:00:49]}  Kf5 {[%clk 0:00:35]} 31. a4 {[%clk 0:00:48]}  Ke5 {[%clk 0:00:32]} 32. Bc4 {[%clk 0:00:43]}  Kd4 {[%clk 0:00:30]} 33. Bxf7 {[%clk 0:00:42]}  Kc5 {[%clk 0:00:30]} 34. b7 {[%clk 0:00:39]}  Kc6 {[%clk 0:00:30]} 35. Bg8 {[%clk 0:00:25]}  h6 {[%clk 0:00:29]} 36. h4 {[%clk 0:00:23]}  Kxb7 {[%clk 0:00:29]} 37. h5 {[%clk 0:00:21]}  Ka6 {[%clk 0:00:28]} 38. Bb3 {[%clk 0:00:20]}  Ka5 {[%clk 0:00:28]} 39. Kg2 {[%clk 0:00:20]}  Bf4 {[%clk 0:00:19]} 40. Kh3 {[%clk 0:00:20]}  Bg5 {[%clk 0:00:17]} 41. Kg4 {[%clk 0:00:20]}  Bd2 {[%clk 0:00:17]} 42. Kf5 {[%clk 0:00:19]}  Bc3 {[%clk 0:00:16]} 43. Bc2 {[%clk 0:00:15]}  Be5 {[%clk 0:00:11]} 44. f4 {[%clk 0:00:14]}  Bd4 {[%clk 0:00:11]} 45. Kg6 {[%clk 0:00:13]}  Bxf2 {[%clk 0:00:11]} 46. Kxh6 {[%clk 0:00:12]}  Be3 {[%clk 0:00:11]} 47. Kg6 {[%clk 0:00:12]}  Bxf4 {[%clk 0:00:11]} 48. h6 {[%clk 0:00:12]}  Bxh6 {[%clk 0:00:10]} 49. Kxh6 {[%clk 0:00:13]}  Kb4 {[%clk 0:00:10]} 50. Kg6 {[%clk 0:00:13]}  Ka5 {[%clk 0:00:11]} 51. Kxf6 {[%clk 0:00:13]}  Kb4 {[%clk 0:00:12]} 52. Ke5 {[%clk 0:00:13]}  Ka5 {[%clk 0:00:13]} 53. Kd6 {[%clk 0:00:13]}  Kb4 {[%clk 0:00:14]} 54. Kc6 {[%clk 0:00:13]}  Ka5 {[%clk 0:00:15]} 55. Kc5 {[%clk 0:00:14]}  Ka6 {[%clk 0:00:15]} 56. Kb4 {[%clk 0:00:14]}  Kb6 {[%clk 0:00:15]} 57. a5+ {[%clk 0:00:14]}  Ka6 {[%clk 0:00:15]} 58. Bd3+ {[%clk 0:00:15]}  Ka7 {[%clk 0:00:15]} 59. Kb5 {[%clk 0:00:15]}  Kb7 {[%clk 0:00:15]} 60. a6+ {[%clk 0:00:16]}  Ka7 {[%clk 0:00:16]} 61. Be4 {[%clk 0:00:15]}  Kb8 {[%clk 0:00:13]} 62. Kb6 {[%clk 0:00:16]} 1-0


[Site "https://www.chess.com"]

[Event "Titled Tuesday Blitz April 05 Late 2022"]
[White "Jaferian, Koosha"]
[Black "Kostiukov, Alexandr"]
[WhiteFideId "12507440"]
[BlackFideId "14108100"]
[WhiteElo "2556"]
[BlackElo "2337"]
[Result "1-0"]
[Round "04"]
[TimeControl "180+1"]
[Date "2022.04.06"]
[WhiteClock "0:01:24"]
[BlackClock "0:00:02"]

1. e4 {[%clk 0:03:00]}  c5 {[%clk 0:02:59]} 2. Nc3 {[%clk 0:03:00]}  g6 {[%clk 0:03:00]} 3. d4 {[%clk 0:03:00]}  cxd4 {[%clk 0:03:01]} 4. Qxd4 {[%clk 0:03:00]}  Nf6 {[%clk 0:03:01]} 5. Nf3 {[%clk 0:03:00]}  Nc6 {[%clk 0:03:02]} 6. Qa4 {[%clk 0:03:00]}  d6 {[%clk 0:02:57]} 7. e5 {[%clk 0:03:00]}  dxe5 {[%clk 0:02:57]} 8. Nxe5 {[%clk 0:03:01]}  Bg7 {[%clk 0:02:56]} 9. Bb5 {[%clk 0:03:01]}  O-O {[%clk 0:02:49]} 10. Nxc6 {[%clk 0:03:01]}  bxc6 {[%clk 0:02:50]} 11. Bxc6 {[%clk 0:03:02]}  Bd7 {[%clk 0:02:43]} 12. O-O {[%clk 0:03:01]}  Qc8 {[%clk 0:02:06]} 13. Bxd7 {[%clk 0:02:54]}  Nxd7 {[%clk 0:02:03]} 14. Bd2 {[%clk 0:02:51]}  Nb6 {[%clk 0:01:59]} 15. Qe4 {[%clk 0:02:50]}  Nc4 {[%clk 0:01:57]} 16. Bf4 {[%clk 0:02:16]}  e5 {[%clk 0:01:38]} 17. Nd5 {[%clk 0:02:09]}  Kh8 {[%clk 0:01:28]} 18. Bc1 {[%clk 0:01:51]}  f5 {[%clk 0:01:23]} 19. Qe2 {[%clk 0:01:48]}  e4 {[%clk 0:01:15]} 20. c3 {[%clk 0:01:46]}  Qc5 {[%clk 0:01:02]} 21. Ne3 {[%clk 0:01:46]}  Ne5 {[%clk 0:01:02]} 22. Nc2 {[%clk 0:01:38]}  Nd3 {[%clk 0:01:01]} 23. Be3 {[%clk 0:01:38]}  Qe7 {[%clk 0:00:53]} 24. Bd4 {[%clk 0:01:35]}  Nxb2 {[%clk 0:00:45]} 25. Bxg7+ {[%clk 0:01:32]}  Qxg7 {[%clk 0:00:44]} 26. Nd4 {[%clk 0:01:33]}  Nd3 {[%clk 0:00:42]} 27. Ne6 {[%clk 0:01:32]}  Qxc3 {[%clk 0:00:37]} 28. Nxf8 {[%clk 0:01:33]}  Rxf8 {[%clk 0:00:36]} 29. Qe3 {[%clk 0:01:29]}  Qg7 {[%clk 0:00:18]} 30. f3 {[%clk 0:01:24]}  Qe5 {[%clk 0:00:03]} 31. fxe4 {[%clk 0:01:23]}  fxe4 {[%clk 0:00:04]} 32. Rxf8+ {[%clk 0:01:23]}  Kg7 {[%clk 0:00:04]} 33. Rff1 {[%clk 0:01:24]}  Nc5 {[%clk 0:00:02]} 34. Rae1 {[%clk 0:01:24]} 1-0


[Site "https://www.chess.com"]

[Event "Titled Tuesday Blitz April 05 Late 2022"]
[White "Jaracz, Pawel"]
[Black "Hnydiuk, Aleksander"]
[WhiteFideId "1102222"]
[BlackFideId "1109057"]
[WhiteElo "2709"]
[BlackElo "2531"]
[Result "0-1"]
[Round "04"]
[TimeControl "180+1"]
[Date "2022.04.06"]
[WhiteClock "0:00:14"]
[BlackClock "0:00:41"]

1. d4 {[%clk 0:03:00]}  Nf6 {[%clk 0:02:59]} 2. c4 {[%clk 0:02:59]}  e6 {[%clk 0:02:59]} 3. Nc3 {[%clk 0:02:59]}  Bb4 {[%clk 0:02:59]} 4. Qc2 {[%clk 0:02:59]}  O-O {[%clk 0:02:58]} 5. e3 {[%clk 0:02:54]}  b6 {[%clk 0:02:53]} 6. Bd3 {[%clk 0:02:54]}  Bb7 {[%clk 0:02:52]} 7. f3 {[%clk 0:02:54]}  c5 {[%clk 0:02:47]} 8. dxc5 {[%clk 0:02:43]}  bxc5 {[%clk 0:02:42]} 9. Ne2 {[%clk 0:02:43]}  d5 {[%clk 0:02:41]} 10. O-O {[%clk 0:02:42]}  Nbd7 {[%clk 0:02:33]} 11. a3 {[%clk 0:02:35]}  Ba5 {[%clk 0:02:32]} 12. cxd5 {[%clk 0:02:23]}  exd5 {[%clk 0:02:31]} 13. Rd1 {[%clk 0:02:20]}  Re8 {[%clk 0:02:29]} 14. Bf5 {[%clk 0:02:18]}  Qe7 {[%clk 0:02:12]} 15. Nf4 {[%clk 0:01:50]}  d4 {[%clk 0:01:36]} 16. exd4 {[%clk 0:01:48]}  cxd4 {[%clk 0:01:37]} 17. Nb5 {[%clk 0:01:38]}  Rac8 {[%clk 0:01:20]} 18. Qa4 {[%clk 0:01:31]}  Bb6 {[%clk 0:01:18]} 19. Nd3 {[%clk 0:01:15]}  Bc6 {[%clk 0:01:10]} 20. Qa6 {[%clk 0:01:10]}  Rcd8 {[%clk 0:00:50]} 21. Bg5 {[%clk 0:01:07]}  Nc5 {[%clk 0:00:45]} 22. Nxc5 {[%clk 0:01:07]}  Qxc5 {[%clk 0:00:46]} 23. Bxf6 {[%clk 0:00:20]}  Bxb5 {[%clk 0:00:46]} 24. Qb7 {[%clk 0:00:15]}  d3+ {[%clk 0:00:45]} 25. Kh1 {[%clk 0:00:14]}  gxf6 {[%clk 0:00:41]} 0-1


[Site "https://www.chess.com"]

[Event "Titled Tuesday Blitz April 05 Late 2022"]
[White "Javakhadze, Zurab"]
[Black "Martin Barcelo, Carles"]
[WhiteFideId "13603647"]
[BlackFideId "24561444"]
[WhiteElo "2636"]
[BlackElo "2479"]
[Result "1-0"]
[Round "04"]
[TimeControl "180+1"]
[Date "2022.04.06"]
[WhiteClock "0:02:04"]
[BlackClock "0:02:12"]

1. d4 {[%clk 0:02:55]}  Nf6 {[%clk 0:02:56]} 2. c4 {[%clk 0:02:52]}  g6 {[%clk 0:02:50]} 3. Nc3 {[%clk 0:02:52]}  Bg7 {[%clk 0:02:51]} 4. e4 {[%clk 0:02:52]}  d6 {[%clk 0:02:51]} 5. Nf3 {[%clk 0:02:52]}  O-O {[%clk 0:02:52]} 6. Be2 {[%clk 0:02:52]}  e5 {[%clk 0:02:53]} 7. Be3 {[%clk 0:02:53]}  exd4 {[%clk 0:02:51]} 8. Nxd4 {[%clk 0:02:53]}  Re8 {[%clk 0:02:52]} 9. f3 {[%clk 0:02:53]}  c6 {[%clk 0:02:51]} 10. Bf2 {[%clk 0:02:52]}  Na6 {[%clk 0:02:47]} 11. O-O {[%clk 0:02:51]}  Nc7 {[%clk 0:02:48]} 12. Qd2 {[%clk 0:02:43]}  d5 {[%clk 0:02:48]} 13. exd5 {[%clk 0:02:43]}  cxd5 {[%clk 0:02:49]} 14. c5 {[%clk 0:02:43]}  Ne6 {[%clk 0:02:48]} 15. b4 {[%clk 0:02:35]}  a6 {[%clk 0:02:37]} 16. Rad1 {[%clk 0:02:31]}  Nxd4 {[%clk 0:02:31]} 17. Bxd4 {[%clk 0:02:31]}  Be6 {[%clk 0:02:32]} 18. Bd3 {[%clk 0:02:14]}  Qd7 {[%clk 0:02:26]} 19. Bc2 {[%clk 0:02:13]}  h5 {[%clk 0:02:23]} 20. Ba4 {[%clk 0:02:13]}  Qc7 {[%clk 0:02:11]} 21. Bxe8 {[%clk 0:02:11]}  Rxe8 {[%clk 0:02:11]} 22. Rfe1 {[%clk 0:02:05]}  h4 {[%clk 0:02:11]} 23. Bxf6 {[%clk 0:02:04]}  Bxf6 {[%clk 0:02:12]} 24. Nxd5 {[%clk 0:02:04]} 1-0


[Site "https://www.chess.com"]